Cogmind - Beta 13 @@@ ROGUE MODE // 2024.04.01 @ 20:36:48 Player: SuperDrops Result: Destroyed by G-34 Mercenary with Small Laser Performance ------------- Evolutions (0) 0 Regions Visited (1) 200 Robots Destroyed (10) 50 Value Destroyed (256) 256 Prototype IDs (0) 0 Alien Tech Used (0) 0 Bonus (0) 0 TOTAL SCORE: 506 Bonus ------- None Cogmind --------- Core Integrity 0/250 Matter 300/300 Energy 58/250 System Corruption 0% Temperature Cool (70) Movement Rolling (175) Ox5 Location -10/Materials Parts ------- > --- POWER (1) -------- Ion Engine > --- PROPULSION (2) --- Compact Wheel > --- UTILITY (2) ------ Huge Storage Unit Signal Interpreter > --- WEAPON (2) ------- (None) > --- INVENTORY (25) --- Ion Engine Light Treads Light Treads Aluminum Leg Aluminum Leg Wheel Compact Wheel Large Storage Unit Transport Network Coupler Welding Torch Peak State ------------ > --- POWER ------------ Light Ion Engine > --- PROPULSION ------- Wheel Compact Wheel > --- UTILITY ---------- Large Storage Unit Signal Interpreter > --- WEAPON ----------- Medium Laser Assault Rifle > --- INVENTORY -------- Ion Engine Ion Engine Light Treads Light Treads Aluminum Leg Aluminum Leg Wheel Compact Wheel Compact Wheel Compact Wheel Medium Laser Welding Torch [Rating: 8] Favorites ----------- Power Light Ion Engine Engine Light Ion Engine Propulsion Compact Wheel Wheel Compact Wheel Utility Large Storage Unit Storage Large Storage Unit Processor Signal Interpreter Weapon Medium Laser Energy Gun Medium Laser Ballistic Gun Assault Rifle Special Weapon Mining Laser Build | -11 -10 ------- Run | Yrd Mat Slots Evolved . | . . Power . | . . Propulsion . | . . Utility . | . . Weapon . | . . Parts Attached 18 | 6 12 Power 3 | 1 2 Engine 3 | 1 2 Core . | . . Reactor . | . . Propulsion 4 | 2 2 Treads . | . . Leg . | . . Wheel 4 | 2 2 Hover . | . . Flight . | . . Utility 4 | 1 3 Device . | . . Storage 3 | 1 2 Processor 1 | . 1 Hackware . | . . Protection . | . . Artifact . | . . Weapon 7 | 2 5 Energy Gun 4 | 1 3 Energy Cannon . | . . Ballistic Gun 1 | 1 . Ballistic Cannon . | . . Launcher . | . . Special Weapon 2 | . 2 Impact Weapon . | . . Slashing Weapon . | . . Piercing Weapon . | . . Special Melee Weapon . | . . Unidentified Prototypes . | . . Parts Lost 8 | . 8 Power 1 | . 1 Propulsion 3 | . 3 Utility . | . . Weapon 4 | . 4 Highest Loss Streak 4 | . 4 To Critical Strikes . | . . Average Slot Usage (%) 88 | . 88 Engine 13 | . 13 Wheel 27 | . 27 Storage 14 | . 14 Processor 6 | . 6 Energy Gun 13 | . 13 Ballistic Gun 12 | . 12 Naked Turns . | . . Heaviest Build 87 | 14 87 Greatest Support 32 | 26 32 Greatest Overweight (x) 5 | . 5 Average Overweight (x) 1 | . 1 Largest Inventory Capacity 25 | 8 25 Average Capacity 17 | 6 18 Most Carried 15 | 7 15 Average Carried 10 | 3 11 Final Capacity 25 | 8 25 Final Carried 10 | 6 10 Class Distribution -------------------- 100% | Mutant Dominant Class ---------------- Mutant | -10/Materials Resources | -11 -10 ----------- Run | Yrd Mat Matter Collected 407 | 235 172 Remotely . | . . Salvage Created 290 | . 290 Parts 16 | . 16 Haulers Intercepted 1 | . 1 Recyclers Shooed . | . . Parts Field Recycled . | . . Retrieved Matter . | . . Parts Self-Destructed . | . . Prevented . | . . Kills | -11 -10 ------- Run | Yrd Mat Combat Hostiles Destroyed 6 | . 6 Guns 5 | . 5 Classes Destroyed 4 | . 4 Builder 1 | . 1 Hauler 1 | . 1 Watcher 2 | . 2 Grunt 6 | . 6 Best Kill Streak 4 | . 4 Combat Bots Only 2 | . 2 Max Kills in Single Turn 1 | . 1 Gunslinging . | . . Exploded . | . . Melee . | . . Uniques/NPCs Destroyed . | . . Combat | -11 -10 -------- Run | Yrd Mat Hostile Shots Fired 98 | . 98 Missed 28 | . 28 Damage Taken 815 | . 815 Core 251 | . 251 Absorbed by Shields . | . . Core Remaining (%) 100 | 100 . Volleys Fired 51 | . 51 Largest 2 | . 2 Hottest 100 | . 100 Shots Fired 74 | . 74 Gun 67 | . 67 Cannon . | . . Launcher . | . . Special 7 | . 7 Kinetic 21 | . 21 Thermal 53 | . 53 Explosive . | . . Electromagnetic . | . . Robot Hit Streak 11 | . 11 Robot Miss Streak 5 | . 5 Penetration Max . | . . Secondary Targets 2 | . 2 Max Gunslinging Chain 1 | . 1 Shots Hit Robots 52 | . 52 Core Hits 19 | . 19 Critical Kills . | . . Critical Parts Destroyed . | . . Critical Strikes 5 | . 5 Burn 5 | . 5 Melee Attacks . | . . Impact . | . . Slashing . | . . Piercing . | . . Sneak Attacks . | . . Combat Hostiles . | . . Follow-up Attacks . | . . Damage Inflicted 758 | . 758 Guns 629 | . 629 Cannons . | . . Explosions . | . . Melee . | . . Ramming 33 | . 33 Kinetic 196 | . 196 Thermal 529 | . 529 Explosive . | . . Electromagnetic . | . . Impact . | . . Slashing . | . . Piercing . | . . Highest Corruption . | . . Average Corruption . | . . Corruption Purged . | . . Corruption Blocked . | . . Overload Shots . | . . Overflow Damage . | . . Projectiles . | . . Explosions . | . . Melee . | . . Knockbacks . | . . Impact . | . . Kinetic . | . . Secondary . | . . Self-Inflicted Damage 16 | . 16 Shots . | . . Rammed 2 | . 2 Targets Rammed 2 | . 2 Kicked . | . . Crushed . | . . Highest Temperature 261 | . 261 Average Temperature 95 | . 95 Received Heat Transfer 438 | . 438 Effects 2 | . 2 Interference 2 | . 2 Siege Activations . | . . Robots Corrupted . | . . Combat Hostiles . | . . Parts Fried . | . . Impact Corruptions . | . . Robots Melted 1 | . 1 Combat Hostiles 1 | . 1 Parts Melted 6 | . 6 Heat Transferred 1865 | . 1865 Parts Sabotaged . | . . Parts Stolen . | . . Parts Stripped . | . . Power Chain Reactions . | . . Alert | -11 -10 ------- Run | Yrd Mat Peak Influence 99 | . 99 Initial . | . . Average 35 | . 39 Maximum Alert Level . | . . Low Security (%) 100 | 100 100 Level 1 . | . . Level 2 . | . . Level 3 . | . . Level 4 . | . . Level 5 . | . . High Security . | . . Max Security . | . . Squads Dispatched 2 | . 2 Investigation 1 | . 1 Extermination . | . . Reinforcement 1 | . 1 Assault . | . . Garrison . | . . Intercept . | . . Searches Triggered . | . . Construction Impeded . | . . Haulers Reinforced . | . . Active Scanning Responses . | . . Cargo Convoy Interrupts . | . . Stealth | -11 -10 --------- Run | Yrd Mat Distress Signals . | . . Communications Jammed . | . . Distress Signals . | . . Times Spotted 15 | . 15 Peak Tracking Total 4 | . 4 Tactical Retreats 1 | . 1 Traps | -11 -10 ------- Run | Yrd Mat Traps Triggered 1 | . 1 Indirectly . | . . Trap Hack Attempts . | . . Triggered . | . . Disarmed . | . . Reprogrammed . | . . Reused . | . . Traps Extracted . | . . Installed . | . . Triggered . | . . Machines | -11 -10 ---------- Run | Yrd Mat Machines Disabled . | . . Max in Single Turn . | . . Machines Repaired . | . . Machines Dismantled . | . . Machines Sabotaged . | . . Overloaded Fab Kills . | . . Hacking | -11 -10 --------- Run | Yrd Mat Machines Accessed . | . . Terminals . | . . Fabricators . | . . Repair Stations . | . . Recycling Units . | . . Scanalyzers . | . . Garrison Access . | . . Total Hacks . | . . Successful . | . . Failed . | . . Catastrophic . | . . Database Lockouts . | . . Manual . | . . Terminals . | . . Fabricators . | . . Repair Stations . | . . Recycling Units . | . . Scanalyzers . | . . Garrison Access . | . . Terminal Hacks . | . . Fabricator Hacks . | . . Repair Station Hacks . | . . Recycling Unit Hacks . | . . Scanalyzer . | . . Garrison Access Hacks . | . . Unauthorized Hacks . | . . Terminals . | . . Fabricators . | . . Repair Stations . | . . Recycling Units . | . . Scanalyzers . | . . Garrison Access . | . . Data Cores Recovered . | . . Used . | . . Hacking Detections . | . . Full Trace Events . | . . Feedback Events . | . . Feedback Blocked . | . . Robot Schematics Acquired . | . . Robots Built . | . . Authchips . | . . Time . | . . Total Robot Build Rating . | . . Part Schematics Acquired . | . . Parts Built . | . . Authchips . | . . Time . | . . Total Part Build Rating . | . . Parts Repaired . | . . Time . | . . Parts Recycled . | . . Recycled Matter . | . . Retrieved Matter . | . . Retrieved Components . | . . Parts Scanalyzed . | . . Part Schematics Acquired . | . . Parts Damaged . | . . Bothacking | -11 -10 ------------ Run | Yrd Mat Used RIF Installer . | . . Robots Hacked . | . . Non-combat . | . . Combat . | . . Robot Hacks Applied . | . . Relay Couplers Released . | . . Fabnet Peak Effective % . | . . Robots Rewired . | . . Allies Hacked . | . . Hacks Repelled . | . . Allies | -11 -10 -------- Run | Yrd Mat Total Allies . | . . Largest Group . | . . Highest-Rated Group . | . . Highest-Rated Ally . | . . Total Orders . | . . Ally Attacks . | . . Total Damage . | . . Kills . | . . Allies Corrupted . | . . Allies Melted . | . . Intel | -11 -10 ------- Run | Yrd Mat Robot Analysis Total . | . . Derelict Logs Recovered . | . . Drone Launches . | . . Drone Recoveries . | . . Exploration | -11 -10 ------------- Run | Yrd Mat Turns Passed 729 | 71 658 Spaces Moved 501 | 63 438 Core 9 | 9 . Treads . | . . Legs . | . . Wheels 492 | 54 438 Hover . | . . Flight . | . . Fastest Speed 50 | 50 90 Average Speed 108 | 84 111 Slowest Speed 175 | 100 175 Overloaded Moves . | . . Propulsion Burnouts . | . . Robots Hopped . | . . Cave-ins Triggered . | . . Exploration Rate (%) 30 | 3 58 Regions Visited 1 Branch Regions . Pre-discovered Areas . | . . Known Exits Taken . | . . Unknown Exits Taken 1 | 1 . Scrap Searched . | . . Spaces Dug . | . . Terrain Destroyed 2 | . 2 Melee . | . . Projectile 2 | . 2 AOE . | . . Terrain Rammed . | . . Walls Destroyed . | . . Machines Disabled . | . . Actions | -11 -10 --------- Run | Yrd Mat Total 598 | 80 518 Wait 3 | . 3 Move 500 | 62 438 Hop . | . . Pick Up 23 | 12 11 Fast Attach . | . . Attach 12 | 6 6 Detach . | . . Swap 6 | . 6 Drop 1 | . 1 Fire 51 | . 51 Melee . | . . Ram 2 | . 2 Kick . | . . Crush . | . . Escape Stasis . | . . Rewire . | . . Trap . | . . Miscellaneous . | . . Route ------- -11/Scrapyard -10/Materials (discovered 2 exits: *Mat x2) History --------- Turn | Location | Event 19 | -11/Scrapyard | Discovered new exit (range 15) 72 | -11/Scrapyard | Entered Materials 146 | -10/Materials | Discovered new exit (range 15) 309 | -10/Materials | Build established: Mutant 355 | -10/Materials | Discovered new exit (range 9) 466 | -10/Materials | Identified exit to Materials 642 | -10/Materials | Core integrity fell below 50% 693 | -10/Materials | Lost 4 parts (1p1n2w) 703 | -10/Materials | Core integrity fell below 20% 730 | -10/Materials | Destroyed by G-34 Mercenary with Small Laser Last Messages --------------- G-34 Mercenary overheating. G-34 Mercenary heat short circuits Aluminum Leg. G-34 Mercenary overheating. U-05 Engineer lays Concrete. G-34 Mercenary overheating. G-34 Mercenary heat spikes uncontrollably. G-34 Mercenary overheating. G-34 Mercenary heat spikes uncontrollably. G-34 Mercenary overheating. G-34 Mercenary heat damages Broken Aluminum Leg. G-34 Mercenary overheating. Mining Laser destroyed. G-34 Mercenary overheating. U-05 Engineer builds a Wall. G-34 Mercenary heat damages Aluminum Leg. G-34 Mercenary overheating. Com. Wheel destroyed. Acquired 20 matter. U-05 Engineer builds a Wall. G-34 Mercenary heat damages core (-3). Map ----- +----------------------------------------------------+ | | | | | ??????????????????????????????????? | | ??????????????????????????????????? | | ??????????????????????????????????? | | ??????????????????????????????????? | | ??????????????????????????????????? | | ??????????????????????????????????? | | ??????????????????????????????????? | | ??????????????????????????????????? | | ??????????????????????????????????? | | ????????????????????????#?????????? | | ???????????????????????? ?????????? | | ??????????????????????? #????????? | | ??????????????????????? #????????? | | ???????????????????# ??" #????????? | | ???????????????????# """ #????????? | | ???????????????????# """ #????????? | | ???????????????????# #????????? | | ??????????????? ???# """ #????????? | | ??????????????# ?# """ ########## | | ??????????????# ?# """ ## # | | ??????????????# ?# ## """ # | | ?????????????## ## ## """ # | | ?????????????# k ###/#+## """ # | | ?????????? uu!@#* # | | ?????????? *% +! """ # | | ?????????? %=# """ # | | ???????????### ### = # """ # | | ????????????####/#####g # # | | ????????????# + + = # | | ????????????# # # # | | ????????????# # ##+###### | | ????????????# + #????? | | ????????????# ####+####????? | | ????????????# #? ??????? | | ????????????# # #?????? | | ????????????# # #?????? | | ????????????# % # """ #?????? | | ????????????##+####### """ #?????? | | ?????######### #?????# """ #?????? | | ?????# # #?????###########??? | | ?????# # #????????# #??? | | ?????# """"" # ########## """ #??? | | #????# """"" + # """ #??? | | #????# """"" # # """ #??? | | ############## # #??? | | # + + #??? | | # " ############# #######???? | | # """#???######### !!#?????? | +----------------------------------------------------+ Best States ------------- Heat Dissipation 25 Energy Generation 10 Energy Capacity 250 Matter Stores 300 Matter Capacity 300 Sight Range 16 Terrain Scan Density 10 Evasion (%) 42 Item Schematics ----------------- None Robot Schematics ------------------ None Fabricated ------------ Nothing Alien Tech Used ----------------- None Achievements -------------- None Challenges ------------ None Game ------ Seed ShrapnelAlertDevice Manual? 0 Play Time 00:09:09 Cumulative 6.0 hours Start 2024.04.01 @ 20:27:48 End 2024.04.01 @ 20:36:48 Sessions 1 Manual Loads 0 Difficulty Rogue Special Mode None Game No. 20 Rogue 20 Adventurer 0 Explorer 0 Win Type - Total 0 Types 0/0/0/0/0/0/0/0/0 Lore% 12 Gallery% 7 Achievement% 7 Wizard Run 0 Options --------- Layout 1 ASCII 0 Keyboard 0 Movement Mouse Keybinds 0 Fullscreen 2 Font 24/Proggy Map View 50x35 Zoom Use 0% Tactical HUD 0 Map Filters NONE Filters NONE Steam 1 RUN: 5b879785-3ee7-497c-92ab-1b277e257dc4